Workbook

Sheet город
A1: Школа | F1: Утвердил: | G1: должность
A2: Типовое примерное меню приготавливаемых блюд | G2: фамилия
A3: Возрастная категория | E3: 7-11 лет | G3: дата | H3: 1 | I3: 9 | J3: 2025
H4: день | I4: месяц | J4: год
A5: Неделя | B5: День недели | C5: Прием пищи | D5: Раздел меню | E5: Блюда | F5: Вес блюда, г | G5: Белки | H5: Жиры | I5: Углеводы | J5: Калорийность | K5: № рецептуры | L5: Цена
A6: 1 | B6: 1 | C6: Завтрак | D6: гор.блюдо | E6: Каша рисовая вязкая молочная с маслом сливочным | F6: 207 | G6: 6 | H6: 9 | I6: 42 | J6: 269 | K6: №510 табл.4 | L6: 30.40
D8: гор.напиток | E8: Чай с сахаром и лимоном | F8: 222 | G8: 0 | H8: 0 | I8: 15 | J8: 59 | K8: №686 сб.2004 г. | L8: 5.90
D9: хлеб | E9: Хлеб/Батон (порциями) | F9: 30 | G9: 2 | H9: 0 | I9: 12 | J9: 60 | K9: №1 сб.2004 г./ ТТК №27 | L9: 2.93
D10: фрукты
D11: сладкое | E11: Пирожное песочное, 1 шт | F11: 50 | G11: 8 | H11: 10 | I11: 13 | J11: 174 | L11: 30.20
D13: итого | F13: =SUM(F6:F12) -> 509 | G13: =SUM(G6:G12) -> 16 | H13: =SUM(H6:H12) -> 19 | I13: =SUM(I6:I12) -> 82 | J13: =SUM(J6:J12) -> 562 | L13: =SUM(L6:L12) -> 69.43
A14: =A6 -> 1 | B14: =B6 -> 1 | C14: Обед | D14: закуска
D15: 1 блюдо
D16: 2 блюдо
D17: гарнир
D18: напиток
D19: хлеб бел.
D20: хлеб черн.
D23: итого | F23: =SUM(F14:F22) -> 0 | G23: 0 | H23: 0 | I23: 0 | J23: 0 | L23: =SUM(L14:L22) -> 0.00
A24: =A6 -> 1 | B24: =B6 -> 1 | C24: Итого за день: | F24: =F13+F23 -> 509 | G24: 16 | H24: 19 | I24: 82 | J24: 562 | L24: =L13+L23 -> 69.43
A25: 1 | B25: 2 | C25: Завтрак | D25: гор.блюдо
D26: гарнир | E26: Макаронные изделия отварные | F26: 170 | G26: 6 | H26: 5 | I26: 36 | J26: 213 | K26: ТТК №307С | L26: 10.40
D27: гор.напиток | E27: Чай полусладкий с черносливом, 200/10/7 | F27: 217 | G27: 0 | H27: 0 | I27: 14 | J27: 55 | K27: ТТК №515С | L27: 6.20
D28: хлеб | E28: Хлеб/Батон (порциями) | F28: 25 | G28: 2 | H28: 0 | I28: 10 | J28: 50 | K28: №1 сб.2004 г./ ТТК №27 | L28: 2.43
D29: фрукты
D30: 2 блюдо | E30: Котлеты Любительские с соусом красным основным, 80/10 | F30: 90 | G30: 11 | H30: 11 | I30: 11 | J30: 187 | K30: ТТК №286, ТТК №362 | L30: 50.40
D32: итого | F32: =SUM(F25:F31) -> 502 | G32: =SUM(G25:G31) -> 19 | H32: =SUM(H25:H31) -> 16 | I32: =SUM(I25:I31) -> 71 | J32: =SUM(J25:J31) -> 505 | L32: =SUM(L25:L31) -> 69.43
A33: =A25 -> 1 | B33: =B25 -> 2 | C33: Обед | D33: закуска
D34: 1 блюдо
D35: 2 блюдо
D36: гарнир
D37: напиток
D38: хлеб бел.
D39: хлеб черн.
D42: итого | F42: =SUM(F33:F41) -> 0 | G42: 0 | H42: 0 | I42: 0 | J42: 0 | L42: =SUM(L33:L41) -> 0.00
A43: =A25 -> 1 | B43: =B25 -> 2 | C43: Итого за день: | F43: =F32+F42 -> 502 | G43: 19 | H43: 16 | I43: 71 | J43: 505 | L43: =L32+L42 -> 69.43
A44: 1 | B44: 3 | C44: Завтрак | D44: гор.блюдо | E44: Картофель тушеный с филе птицы рубленым | F44: 150 | G44: 13 | H44: 15 | I44: 30 | J44: 307 | K44: ТТК №100С | L44: 42.90
D46: гор.напиток | E46: Чай с сахаром | F46: 215 | G46: 0 | H46: 0 | I46: 15 | J46: 57 | K46: №685 сб. 2004 г. | L46: 3.20
D47: хлеб | E47: Хлеб/Батон (порциями) | F47: 50 | G47: 3 | H47: 1 | I47: 21 | J47: 100 | K47: №1 сб.2004 г./ ТТК №27 | L47: 3.73
D48: фрукты
D49: закуска | E49: Овощи свежие | F49: 85 | G49: 1 | H49: 0 | I49: 2 | J49: 12 | K49: табл. №24 сб.1996г. | L49: 19.60
D50: сладкое
D51: итого | F51: =SUM(F44:F50) -> 500 | G51: =SUM(G44:G50) -> 17 | H51: =SUM(H44:H50) -> 16 | I51: =SUM(I44:I50) -> 68 | J51: =SUM(J44:J50) -> 476 | L51: =SUM(L44:L50) -> 69.43
A52: =A44 -> 1 | B52: =B44 -> 3 | C52: Обед | D52: закуска
D53: 1 блюдо
D54: 2 блюдо
D55: гарнир
D56: напиток
D57: хлеб бел.
D58: хлеб черн.
D61: итого | F61: =SUM(F52:F60) -> 0 | G61: 0 | H61: 0 | I61: 0 | J61: 0 | L61: =SUM(L52:L60) -> 0.00
A62: =A44 -> 1 | B62: =B44 -> 3 | C62: Итого за день: | F62: =F51+F61 -> 500 | G62: 17 | H62: 16 | I62: 68 | J62: 476 | L62: =L51+L61 -> 69.43
A63: 1 | B63: 4 | C63: Завтрак | D63: гор.блюдо | E63: Плов с мясом говядины рубленным | F63: 180 | G63: 13 | H63: 13 | I63: 40 | J63: 326 | K63: ТТК №107С | L63: 51.00
D65: гор.напиток | E65: Чай с сахаром | F65: 215 | G65: 0 | H65: 0 | I65: 15 | J65: 57 | K65: №685 сб. 2004 г. | L65: 3.20
D66: хлеб | E66: Хлеб/Батон (порциями) | F66: 30 | G66: 2 | H66: 0 | I66: 12 | J66: 60 | K66: №1 сб.2004 г./ ТТК №27 | L66: 3.13
D67: фрукты
D68: закуска | E68: Свекла отварная | F68: 60 | G68: 1 | H68: 0 | I68: 5 | J68: 24 | K68: ТТК №601С | L68: 6.00
D69: сладкое | E69: Вафли неглазированные 1 шт | F69: 20 | G69: 1 | H69: 5 | I69: 9 | J69: 81 | L69: 6.10
D70: итого | F70: =SUM(F63:F69) -> 505 | G70: =SUM(G63:G69) -> 17 | H70: =SUM(H63:H69) -> 18 | I70: =SUM(I63:I69) -> 81 | J70: =SUM(J63:J69) -> 548 | L70: =SUM(L63:L69) -> 69.43
A71: =A63 -> 1 | B71: =B63 -> 4 | C71: Обед | D71: закуска
D72: 1 блюдо
D73: 2 блюдо
D74: гарнир
D75: напиток
D76: хлеб бел.
D77: хлеб черн.
D80: итого | F80: =SUM(F71:F79) -> 0 | G80: 0 | H80: 0 | I80: 0 | J80: 0 | L80: =SUM(L71:L79) -> 0.00
A81: =A63 -> 1 | B81: =B63 -> 4 | C81: Итого за день: | F81: =F70+F80 -> 505 | G81: 17 | H81: 18 | I81: 81 | J81: 548 | L81: =L70+L80 -> 69.43
A82: 1 | B82: 5 | C82: Завтрак | D82: гор.блюдо
D83: гарнир | E83: Макаронные изделия отварные | F83: 170 | G83: 6 | H83: 5 | I83: 36 | J83: 213 | K83: ТТК №307С | L83: 10.40
D84: гор.напиток | E84: Чай с сахаром и лимоном | F84: 222 | G84: 0 | H84: 0 | I84: 15 | J84: 59 | K84: №686 сб.2004 г. | L84: 5.90
D85: хлеб | E85: Хлеб/Батон (порциями) | F85: 25 | G85: 2 | H85: 0 | I85: 10 | J85: 50 | K85: №1 сб.2004 г./ ТТК №27 | L85: 2.53
D86: фрукты
D87: 2 блюдо | E87: Гуляш из филе птицы | F87: 100 | G87: 11 | H87: 14 | I87: 6 | J87: 194 | K87: №437 сб.2004 г. | L87: 50.60
D89: итого | F89: =SUM(F82:F88) -> 517 | G89: 19 | H89: 19 | I89: 67 | J89: 516 | L89: =SUM(L82:L88) -> 69.43
A90: =A82 -> 1 | B90: 5 | C90: Обед | D90: закуска
D91: 1 блюдо
D92: 2 блюдо
D93: гарнир
D94: напиток
D95: хлеб бел.
D96: хлеб черн.
D99: итого | F99: =SUM(F90:F98) -> 0 | G99: 0 | H99: 0 | I99: 0 | J99: 0 | L99: =SUM(L90:L98) -> 0.00
A100: =A82 -> 1 | B100: 5 | C100: Итого за день: | F100: =F89+F99 -> 517 | G100: 19 | H100: 19 | I100: 67 | J100: 516 | L100: =L89+L99 -> 69.43
A101: 1 | B101: 6 | C101: Завтрак | D101: гор.блюдо | E101: Каша гречневая вязкая с сосиской отварной для детского питания | F101: 230 | G101: 12 | H101: 14 | I101: 28 | J101: 281 | K101: ТТК №302С, №413 сб.2004г | L101: =11.8+34.7 -> 46.50
D103: гор.напиток | E103: Чай с сахаром | F103: 215 | G103: 0 | H103: 0 | I103: 15 | J103: 57 | K103: №685 сб. 2004 г. | L103: 3.20
D104: хлеб | E104: Хлеб/Батон (порциями) | F104: 35 | G104: 2 | H104: 0 | I104: 14 | J104: 70 | K104: №1 сб.2004 г./ТТК №27 | L104: 3.33
D105: фрукты
D106: сладкое | E106: Конфета вафельная в шоколадной глазури, 1 шт | F106: 39 | G106: 2 | H106: 6 | I106: 22 | J106: 150 | K106: №1 сб.2004 г./ ТТК №27 | L106: 16.40
D108: итого | F108: =SUM(F101:F107) -> 519 | G108: =SUM(G101:G107) -> 16 | H108: =SUM(H101:H107) -> 20 | I108: =SUM(I101:I107) -> 79 | J108: =SUM(J101:J107) -> 558 | L108: =SUM(L101:L107) -> 69.43
A109: =A101 -> 1 | B109: =B101 -> 6 | C109: Обед | D109: закуска
D110: 1 блюдо
D111: 2 блюдо
D112: гарнир
D113: напиток
D114: хлеб бел.
D115: хлеб черн.
D118: итого | F118: =SUM(F109:F117) -> 0 | G118: 0 | H118: 0 | I118: 0 | J118: 0 | L118: =SUM(L109:L117) -> 0.00
A119: =A101 -> 1 | B119: =B101 -> 6 | C119: Итого за день: | F119: =F108+F118 -> 519 | G119: 16 | H119: 20 | I119: 79 | J119: 558 | L119: =L108+L118 -> 69.43
A120: 2 | B120: 1 | C120: Завтрак | D120: гор.блюдо | E120: Каша молочная Дружба с маслом сливочным, яйцо вареное | F120: 233 | G120: 12 | H120: 13 | I120: 36 | J120: 305 | K120: ТТК №84, №337 | L120: =16.7+6.7+19.9 -> 43.30
D122: гор.напиток | E122: Напиток витаминный | F122: 200 | G122: 0 | H122: 0 | I122: 19 | J122: 78 | K122: ТТК №505С | L122: 15.20
D123: хлеб | E123: Хлеб/Батон (порциями) | F123: 35 | G123: 2 | H123: 0 | I123: 14 | J123: 70 | K123: №1 сб.2004 г./ ТТК №27 | L123: 3.43
D124: фрукты
D125: сладкое | E125: Пряники 1 шт | F125: 39 | G125: 2 | H125: 3 | I125: 13 | J125: 87 | L125: 7.50
D127: итого | F127: =SUM(F120:F126) -> 507 | G127: =SUM(G120:G126) -> 16 | H127: =SUM(H120:H126) -> 16 | I127: =SUM(I120:I126) -> 82 | J127: =SUM(J120:J126) -> 540 | L127: =SUM(L120:L126) -> 69.43
A128: =A120 -> 2 | B128: =B120 -> 1 | C128: Обед | D128: закуска
D129: 1 блюдо
D130: 2 блюдо
D131: гарнир
D132: напиток
D133: хлеб бел.
D134: хлеб черн.
D137: итого | F137: =SUM(F128:F136) -> 0 | G137: 0 | H137: 0 | I137: 0 | J137: 0 | L137: =SUM(L128:L136) -> 0.00
A138: =A120 -> 2 | B138: =B120 -> 1 | C138: Итого за день: | F138: =F127+F137 -> 507 | G138: 16 | H138: 16 | I138: 82 | J138: 540 | L138: =L127+L137 -> 69.43
A139: 2 | B139: 2 | C139: Завтрак | D139: гор.блюдо | E139: Плов из цыплят | F139: 200 | G139: 13 | H139: 16 | I139: 43 | J139: 368 | K139: №492 сб.2004 г. | L139: 53.40
D141: гор.напиток | E141: Чай полусладкий с курагой, 200/10/7 | F141: 217 | G141: 1 | H141: 0 | I141: 14 | J141: 54 | K141: ТТК №514С | L141: 6.20
D142: фрукты
D143: хлеб | E143: Хлеб/Батон (порциями) | F143: 40 | G143: 3 | H143: 0 | I143: 16 | J143: 80 | K143: №1 сб.2004 г./ ТТК №27 | L143: 3.83
D144: закуска | E144: Свекла отварная | F144: 60 | G144: 1 | H144: 0 | I144: 5 | J144: 24 | K144: ТТК №601С | L144: 6.00
D146: итого | F146: =SUM(F139:F145) -> 517 | G146: =SUM(G139:G145) -> 18 | H146: =SUM(H139:H145) -> 16 | I146: =SUM(I139:I145) -> 78 | J146: =SUM(J139:J145) -> 526 | L146: =SUM(L139:L145) -> 69.43
A147: =A139 -> 2 | B147: =B139 -> 2 | C147: Обед | D147: закуска
D148: 1 блюдо
D149: 2 блюдо
D150: гарнир
D151: напиток
D152: хлеб бел.
D153: хлеб черн.
D156: итого | F156: =SUM(F147:F155) -> 0 | G156: 0 | H156: 0 | I156: 0 | J156: 0 | L156: =SUM(L147:L155) -> 0.00
A157: =A139 -> 2 | B157: =B139 -> 2 | C157: Итого за день: | F157: =F146+F156 -> 517 | G157: 18 | H157: 16 | I157: 78 | J157: 526 | L157: =L146+L156 -> 69.43
A158: 2 | B158: 3 | C158: Завтрак | D158: гор.блюдо
D159: гарнир | E159: Макаронные изделия отварные | F159: 170 | G159: 6 | H159: 5 | I159: 36 | J159: 213 | K159: ТТК №307С | L159: 10.40
D160: гор.напиток | E160: Чай с сахаром | F160: 215 | G160: 0 | H160: 0 | I160: 15 | J160: 57 | K160: №685 сб. 2004 г. | L160: 3.20
D161: хлеб | E161: Хлеб/Батон (порциями) | F161: 30 | G161: 2 | H161: 0 | I161: 12 | J161: 60 | K161: №1 сб.2004 г./ ТТК №27 | L161: 2.93
D162: фрукты
D163: 2 блюдо | E163: Биточки Дружба с соусом красным основным, 80/20 | F163: 100 | G163: 10 | H163: 11 | I163: 10 | J163: 180 | K163: ТТК №355, ТТК №362 | L163: =52.1+0.8 -> 52.90
D165: итого | F165: =SUM(F158:F164) -> 515 | G165: =SUM(G158:G164) -> 18 | H165: =SUM(H158:H164) -> 16 | I165: =SUM(I158:I164) -> 73 | J165: =SUM(J158:J164) -> 510 | L165: =SUM(L158:L164) -> 69.43
A166: =A158 -> 2 | B166: =B158 -> 3 | C166: Обед | D166: закуска
D167: 1 блюдо
D168: 2 блюдо
D169: гарнир
D170: напиток
D171: хлеб бел.
D172: хлеб черн.
D175: итого | F175: =SUM(F166:F174) -> 0 | G175: 0 | H175: 0 | I175: 0 | J175: 0 | L175: =SUM(L166:L174) -> 0.00
A176: =A158 -> 2 | B176: =B158 -> 3 | C176: Итого за день: | F176: =F165+F175 -> 515 | G176: 18 | H176: 16 | I176: 73 | J176: 510 | L176: =L165+L175 -> 69.43
A177: 2 | B177: 4 | C177: Завтрак | D177: гор.блюдо
D178: гарнир | E178: Каша гречневая вязкая | F178: 180 | G178: 6 | H178: 7 | I178: 26 | J178: 190 | K178: ТТК №302С | L178: 11.80
D179: гор.напиток | E179: Чай с сахаром | F179: 215 | G179: 0 | H179: 0 | I179: 15 | J179: 57 | K179: №685 сб. 2004 г. | L179: 3.20
D180: хлеб | E180: Хлеб/Батон (порциями) | F180: 30 | G180: 2 | H180: 0 | I180: 12 | J180: 60 | K180: №1 сб.2004 г./ТТК №27 | L180: 3.03
D181: фрукты
D182: 2 блюдо | E182: Котлеты Любительские с соусом красным основным, 80/30 | F182: 110 | G182: 11 | H182: 11 | I182: 14 | J182: 198 | K182: ТТК №286, ТТК №362 | L182: 51.40
D184: итого | F184: =SUM(F177:F183) -> 535 | G184: =SUM(G177:G183) -> 19 | H184: =SUM(H177:H183) -> 18 | I184: =SUM(I177:I183) -> 67 | J184: =SUM(J177:J183) -> 505 | L184: =SUM(L177:L183) -> 69.43
A185: =A177 -> 2 | B185: =B177 -> 4 | C185: Обед | D185: закуска
D186: 1 блюдо
D187: 2 блюдо
D188: гарнир
D189: напиток
D190: хлеб бел.
D191: хлеб черн.
D194: итого | F194: =SUM(F185:F193) -> 0 | G194: 0 | H194: 0 | I194: 0 | J194: 0 | L194: =SUM(L185:L193) -> 0.00
A195: =A177 -> 2 | B195: =B177 -> 4 | C195: Итого за день: | F195: =F184+F194 -> 535 | G195: 19 | H195: 18 | I195: 67 | J195: 505 | L195: =L184+L194 -> 69.43
A196: 2 | B196: 5 | C196: Завтрак | D196: гор.блюдо
D197: гарнир | E197: Рис отварной | F197: 150 | G197: 4 | H197: 6 | I197: 34 | J197: 212 | K197: ТТК №309С | L197: 16.40
D198: гор.напиток | E198: Чай с сахаром | F198: 215 | G198: 0 | H198: 0 | I198: 15 | J198: 57 | K198: №685 сб. 2004 г. | L198: 3.20
D199: хлеб | E199: Хлеб/Батон (порциями) | F199: 45 | G199: 3 | H199: 0 | I199: 18 | J199: 90 | K199: №1 сб.2004 г./ ТТК №27 | L199: 4.23
D200: фрукты
D201: 2 блюдо | E201: Гуляш из филе птицы | F201: 90 | G201: 12 | H201: 14 | I201: 3 | J201: 186 | K201: №437 сб.2004 г. | L201: 45.60
D203: итого | F203: =SUM(F196:F202) -> 500 | G203: =SUM(G196:G202) -> 19 | H203: =SUM(H196:H202) -> 20 | I203: =SUM(I196:I202) -> 70 | J203: =SUM(J196:J202) -> 545 | L203: =SUM(L196:L202) -> 69.43
A204: =A196 -> 2 | B204: =B196 -> 5 | C204: Обед | D204: закуска
D205: 1 блюдо
D206: 2 блюдо
D207: гарнир
D208: напиток
D209: хлеб бел.
D210: хлеб черн.
D213: итого | F213: =SUM(F204:F212) -> 0 | G213: 0 | H213: 0 | I213: 0 | J213: 0 | L213: =SUM(L204:L212) -> 0.00
A214: =A196 -> 2 | B214: =B196 -> 5 | C214: Итого за день: | F214: =F203+F213 -> 500 | G214: 19 | H214: 20 | I214: 70 | J214: 545 | L214: =L203+L213 -> 69.43
A215: 2 | B215: 6 | C215: Завтрак | D215: гор.блюдо | E215: Паста с сыром | F215: 175 | G215: 13 | H215: 16 | I215: 40 | J215: 356 | K215: ТТК №301С | L215: 31.50
D217: гор.напиток | E217: Чай полусладкий | F217: 210 | G217: 0 | H217: 0 | I217: 10 | J217: 40 | K217: ТТК №512С | L217: 2.50
D218: хлеб | E218: Хлеб/Батон (порциями) | F218: 25 | G218: 2 | H218: 0 | I218: 10 | J218: 50 | K218: №1 сб.2004 г./ ТТК №27 | L218: 2.53
D219: сладкое | E219: Пюре фруктовое, 1 шт | F219: 90 | G219: 0 | H219: 0 | I219: 8 | J219: 32 | L219: 32.90
D222: итого | F222: =SUM(F215:F221) -> 500 | G222: =SUM(G215:G221) -> 15 | H222: =SUM(H215:H221) -> 16 | I222: =SUM(I215:I221) -> 68 | J222: =SUM(J215:J221) -> 478 | L222: =SUM(L215:L221) -> 69.43
A223: =A215 -> 2 | B223: =B215 -> 6 | C223: Обед | D223: закуска
D224: 1 блюдо
D225: 2 блюдо
D226: гарнир
D227: напиток
D228: хлеб бел.
D229: хлеб черн.
D232: итого | F232: =SUM(F223:F231) -> 0 | G232: 0 | H232: 0 | I232: 0 | J232: 0 | L232: =SUM(L223:L231) -> 0.00
A233: =A215 -> 2 | B233: =B215 -> 6 | C233: Итого за день: | F233: =F222+F232 -> 500 | G233: 15 | H233: 16 | I233: 68 | J233: 478 | L233: =L222+L232 -> 69.43
